bitfinex-derivatives/quotes_SOLF0:USTF0_20250716
["timestamp","ask_amount","ask_price","bid_price","bid_amount"]
[1752684003378,211.38,172.15,172.08,0.03937303]
[1752684003578,501.9,172.16,172.08,0.03937303]
[1752684003788,211.36,172.15,172.08,0.03937303]
[1752684003987,3.27,172.14,172.08,0.03937303]
[1752684004188,3.27,172.13,172.08,0.03937303]
[1752684004378,3.27,172.12,172.08,3.25937303]
[1752684004581,3.27,172.1,172.08,3.25937303]
[1752684004983,3.27,172.1,172.09,5.8081]
[1752684005686,3.27,172.11,172.09,3.22]
[1752684005990,3.27,172.11,172.1,3.22]
[1752684006285,3.27,172.13,172.08,0.03937303]
[1752684006486,3.27,172.15,172.09,15.85912916]
[1752684006687,3.27,172.15,172.14,5.8066]
[1752684006890,214.07,172.18,172.14,3.22]
[1752684007195,3.27,172.17,172.16,5.8057]
[1752684007390,3.27,172.19,172.16,3.22]
[1752684007592,3.27,172.19,172.17,3.22]
[1752684007788,3.27,172.19,172.18,5.8052]
[1752684007987,3.27,172.21,172.15,12.67612411]
[1752684008288,3.27,172.21,172.16,3.22]
[1752684008489,3.27,172.22,172.15,0.03699495]
[1752684008693,3.27,172.22,172.15,3.25699495]
[1752684008888,16.17879359,172.22,172.15,3.25699495]
[1752684009090,3.27,172.18,172.15,3.25699495]
[1752684009287,3.27,172.2,172.17,3.22]
[1752684009488,3.27,172.2,172.16,3.22]
[1752684009688,3.27,172.2,172.18,3.22]
[1752684009886,3.27,172.23,172.2,3.22]
[1752684010088,3.27,172.23,172.21,5.8042]
[1752684010287,3.27,172.23,172.19,7.55448348]
[1752684010491,712.16,172.24,172.19,7.55448348]
[1752684010694,3.27,172.23,172.2,3.22]
[1752684010988,3.27,172.22,172.2,3.26091733]
[1752684011181,712.16,172.24,172.02,210.18]
[1752684011182,719.71448348,172.24,172.16,3.22]
[1752684011388,3.27,172.21,172.13,10.77448348]
[1752684011584,3.27,172.18,172.1,3.22]
[1752684011798,12.90879359,172.22,172.15,7.55448348]
[1752684011995,213.79,172.21,172.11,3.22]
[1752684012195,3.27,172.2,172.15,3.22]
[1752684012493,16.17879359,172.18,172.11,3.22]
[1752684012693,3.27,172.17,172.11,10.77448348]
[1752684012998,3.27,172.17,172.08,3.22]
[1752684013289,3.27,172.13,172.1,5.8079]
[1752684013495,3.27,172.12,172.1,3.22]
[1752684014091,210.52,172.13,172.11,5.8076]
[1752684014286,210.52,172.13,172.11,9.0276]
[1752684014493,213.79,172.13,172.11,5.8076]
[1752684014688,213.79,172.13,172.12,5.8073]
[1752684014893,210.52,172.13,172.07,7.55448348]
[1752684015094,3.27,172.11,172.08,3.22]
[1752684015297,210.52,172.13,172.09,5.8083]
[1752684015492,3.27,172.09,172.06,3.22]
[1752684015791,3.27,172.09,172.07,3.22]
[1752684016196,3.31200416,172.09,172.07,3.22]
[1752684016798,0.04200416,172.09,172.07,3.36]
[1752684017097,0.04200416,172.09,172.08,5.8086]
[1752684017292,0.04200416,172.09,172.08,9.1686]
[1752684017695,3.50200416,172.09,172.08,5.8086]
[1752684018792,3.50200416,172.09,172.07,5.8089]
[1752684019099,3.46,172.08,172.04,3.36]
[1752684019397,9.2689,172.08,172.0,10.91448348]
[1752684019599,9.2689,172.08,172.01,3.36]
[1752684019600,3.46,172.07,172.01,3.36]
[1752684019796,16.36879359,172.07,172.01,3.36]
[1752684020199,3.46,172.07,172.02,7.55448348]
[1752684020600,3.46,172.07,172.04,3.36]
[1752684020898,0.04415663,172.06,172.05,5.8094]
[1752684021099,3.50415663,172.06,172.05,5.8094]
[1752684021799,3.46,172.05,172.0,10.91448348]
[1752684021995,3.46,172.05,171.9,24.99848348]
[1752684021996,3.46,172.05,172.02,3.36]
[1752684022193,3.46,172.08,172.07,5.809]
[1752684022393,3.46,172.1,172.08,3.36]
[1752684022597,208.88,172.13,172.08,7.55448348]
[1752684022902,16.36879359,172.16,172.08,7.55448348]
[1752684023192,3.46,172.11,172.05,7.55448348]
[1752684023394,3.46,172.11,172.07,7.55448348]
[1752684023594,208.88340269,172.12,172.07,7.55448348]
[1752684023790,208.88340269,172.12,172.1,3.36]
[1752684023791,212.3,172.12,172.1,3.36]
[1752684023992,3.46,172.12,172.1,3.36]
[1752684024191,3.49824235,172.11,172.08,3.36]
[1752684024391,0.03824235,172.11,172.1,9.168]
[1752684024791,3.49824235,172.11,172.08,3.36]
[1752684024999,3.46,172.09,172.06,9.1691]
[1752684025195,3.46,172.09,172.07,3.36]
[1752684025501,3.46,172.11,172.05,7.55448348]
[1752684025701,0.04107053,172.1,172.06,3.36]
[1752684025901,0.04107053,172.1,172.05,7.55448348]
[1752684025902,0.04107053,172.1,172.08,3.36]
[1752684026102,0.04107053,172.1,172.09,3.36]
[1752684026302,0.04107053,172.1,172.09,9.1683]
[1752684029197,7.053e-05,172.1,172.09,9.1683]
[1752684029503,7.053e-05,172.1,172.09,16.72278348]
[1752684030699,7.053e-05,172.1,172.09,9.1683]
[1752684031402,3.46007053,172.1,172.09,9.1683]
[1752684031600,3.46007053,172.1,172.09,5.8083]
[1752684032102,3.46007053,172.1,172.08,0.03682229]
[1752684032297,7.053e-05,172.1,172.04,7.55448348]
[1752684032498,3.46,172.08,172.06,3.36]
[1752684032696,3.46,172.08,172.07,5.8089]
[1752684032997,12.90879359,172.1,172.04,3.36]
[1752684033197,3.46,172.06,171.93,421.33789702]
[1752684033403,12.90879359,172.06,172.01,3.36]
[1752684033604,3.46,172.03,172.01,3.36]
[1752684033807,3.46,172.03,172.01,9.1707]
[1752684034007,3.46,172.02,172.0,3.36]
[1752684034201,3.46,172.02,172.0,9.1713]
[1752684034402,3.46,172.02,172.0,3.36]
[1752684034807,3.46,172.02,172.01,9.171]
[1752684035109,16.40813458,172.04,172.01,9.171]
[1752684035405,3.49934099,172.04,172.01,9.171]
[1752684035605,3.49934099,172.04,172.02,3.36]
[1752684035997,3.46,172.03,172.0,3.36]
[1752684036198,3.46,172.03,172.01,3.36]
[1752684036597,0.03693405,172.02,172.01,9.171]
[1752684038005,3.46,172.01,171.96,7.55448348]
[1752684038202,3.46,172.01,171.96,3.36]
[1752684038203,12.90879359,172.01,171.96,3.36]
[1752684038406,12.90879359,172.01,171.86,44.22671648]
[1752684038407,3.46,171.99,171.92,7.55448348]
[1752684038606,3.46,172.01,171.96,7.55448348]
[1752684038912,3.46,172.03,172.02,5.8107]
[1752684040007,3.46,172.03,171.91,11.6284]
[1752684040008,3.46,172.02,171.97,7.55448348]
[1752684040311,3.46,172.02,171.99,10.91448348]
[1752684040513,3.46,172.02,172.0,3.36]
[1752684040713,3.46,172.02,172.01,5.811]
[1752684040911,3.46,172.02,171.99,7.55448348]
[1752684041117,3.46,172.0,171.99,5.8117]
[1752684041314,3.46,172.02,171.99,3.36]
[1752684041611,3.46,172.01,172.0,5.8114]
[1752684042217,0.0396791,172.03,172.02,5.8107]
[1752684042419,0.0396791,172.03,172.02,9.1707]
[1752684042612,3.46,172.04,172.02,3.36]
[1752684042818,209.4,172.06,172.05,5.8097]
[1752684043017,3.46,172.05,172.02,3.36]
[1752684043222,3.50285848,172.05,172.02,3.36]
[1752684043521,5.848e-05,172.05,172.04,9.17]
[1752684044019,3.46,172.1,172.09,5.8083]
[1752684044420,205.1,172.12,172.09,3.36]
[1752684044620,3.46,172.11,172.1,5.808]
[1752684045615,3.46,172.11,172.08,0.04221929]
[1752684045820,3.46,172.09,172.03,3.36]
[1752684046019,3.46,172.08,172.01,10.91448348]
[1752684046221,3.46,172.07,172.01,7.55448348]
[1752684046422,3.46,172.07,172.03,3.36]
[1752684046618,3.46,172.07,172.04,3.36]
[1752684046824,3.39,172.06,172.05,5.8097]
[1752684047520,3.39,172.06,172.0,3.31]
[1752684048121,3.39,172.05,172.03,5.81]
[1752684048430,3.39,172.05,171.95,11.6256]
[1752684048431,0.04435379,172.05,172.04,3.31]
[1752684048623,0.04435379,172.05,172.04,9.12]
[1752684049922,5.379e-05,172.05,172.04,9.12]
[1752684050725,3.39,172.12,172.04,3.31]
[1752684050922,3.39,172.12,172.09,3.31]
[1752684051121,3.39,172.12,172.11,5.8076]
[1752684051521,3.39,172.12,172.09,3.31]
[1752684051723,3.39,172.11,172.09,3.31]
[1752684051929,3.39,172.13,172.1,3.31]
[1752684052225,3.39,172.15,172.11,3.31]
[1752684052422,3.39,172.14,172.13,5.8067]
[1752684052620,3.39,172.17,172.11,3.31]
[1752684052821,206.59,172.2,172.15,3.31]
[1752684053019,3.39,172.19,172.18,5.8052]
[1752684053721,3.39,172.18,172.17,0.04444963]
[1752684053916,206.59,172.2,172.17,10.90893311]
[1752684054224,3.39,172.23,172.22,5.8039]
[1752684054618,203.4,172.27,172.24,5.8032]
[1752684055022,203.4,172.27,172.21,7.59298969]
[1752684055222,3.39,172.23,172.22,5.8037]
[1752684055823,203.4,172.27,172.22,3.31]
[1752684055824,3.39,172.24,172.22,3.31]
[1752684056328,3.39,172.24,172.23,5.8033]
[1752684057120,3.39,172.26,172.22,5.8038]
[1752684057324,3.39,172.26,172.21,0.03850621]
[1752684057733,3.39,172.25,172.21,5.84270621]
[1752684058026,3.39,172.24,172.16,7.55448348]
[1752684058324,3.39,172.24,172.2,5.8044]
[1752684058824,3.39,172.24,172.19,5.8049]
[1752684059024,3.39,172.22,172.15,3.31]
[1752684059230,3.39,172.2,172.15,3.31]
[1752684059624,202.1,172.21,172.16,3.31]
[1752684059928,201.92,172.23,172.17,3.31]
[1752684060123,3.39,172.22,172.17,3.31]
[1752684060326,3.39,172.21,172.18,3.31]
[1752684060523,0.04378075,172.22,172.2,7.55448348]
[1752684060832,3.39,172.21,172.18,10.86448348]
[1752684061021,201.92,172.23,172.19,3.31]
[1752684061222,0.03738007,172.23,172.2,7.55448348]
[1752684061423,0.03738007,172.23,172.22,10.86448348]
[1752684061624,8.007e-05,172.23,172.22,10.86448348]
[1752684061834,205.03,172.29,172.23,3.31]
[1752684062032,3.39,172.28,172.25,10.86448348]
[1752684062333,3.39,172.27,172.26,5.8025]
[1752684062926,3.39,172.27,172.25,5.84387118]
[1752684063128,3.39,172.28,172.25,0.04097118]
[1752684064133,201.64,172.29,172.25,0.04097118]
[1752684064134,3.39,172.26,172.25,0.04097118]
[1752684065532,3.39,172.28,172.26,3.31]
[1752684065731,3.39,172.3,172.27,3.31]
[1752684065937,3.39,172.3,172.28,3.31]
[1752684066140,3.39,172.3,172.29,5.8016]
[1752684066432,200.58,172.33,172.28,7.55448348]
[1752684066732,3.39,172.36,172.27,3.31]
[1752684066939,3.39,172.35,172.27,3.31]
[1752684067235,3.39,172.34,172.3,5.801]
[1752684067430,3.39,172.34,172.29,0.04176698]
[1752684067635,3.39,172.32,172.31,5.8008]
[1752684068233,3.39,172.32,172.3,0.04139188]
[1752684068434,3.39,172.32,172.24,3.31]
[1752684068633,208.03448348,172.33,172.22,3.31]
[1752684068634,7.55448348,172.31,172.22,3.31]
[1752684068928,3.39,172.28,172.22,3.31]
[1752684069132,203.69,172.28,172.25,5.8026]
[1752684069328,3.39,172.27,172.25,5.8026]
[1752684069535,3.39,172.26,172.22,3.31]
[1752684069735,3.39,172.26,172.23,3.31]
[1752684069931,3.39,172.26,172.21,7.55448348]
[1752684069932,3.39,172.25,172.19,3.31]
[1752684070131,10.94448348,172.25,172.15,7.55448348]
[1752684070337,5.8038,172.23,172.19,5.8049]
[1752684070533,3.43445767,172.22,172.19,5.8049]
[1752684070734,3.39,172.2,172.14,7.55448348]
[1752684070935,3.39,172.21,172.13,10.86448348]
[1752684071534,0.04143922,172.19,172.13,10.86448348]
[1752684071736,3.43143922,172.19,172.13,10.86448348]
[1752684071940,9.23643922,172.19,172.13,10.86448348]
[1752684072434,0.04143922,172.19,172.13,3.31]
[1752684072638,3.39,172.18,172.11,7.55448348]
[1752684072838,3.39,172.17,172.11,7.55448348]
[1752684073039,3.39,172.16,172.12,3.31]
[1752684073340,3.39,172.15,172.12,3.31]
[1752684073536,3.39,172.15,172.13,5.807]
[1752684073740,3.39,172.14,172.13,5.807]
[1752684073939,0.04027095,172.16,172.11,3.31]
[1752684074142,0.04027095,172.16,172.11,10.86448348]
[1752684074441,0.04027095,172.16,172.15,3.31]
[1752684074641,0.04027095,172.16,172.15,9.1163]
[1752684074841,0.04027095,172.16,172.15,5.8063]
[1752684075041,3.43027095,172.16,172.12,3.31]
[1752684075237,0.04027095,172.16,172.12,3.31]
[1752684075441,0.04027095,172.16,172.11,7.55448348]
[1752684075738,0.04027095,172.16,172.15,5.8063]
[1752684075942,3.39,172.17,172.15,5.8063]
[1752684076241,3.39,172.16,172.15,5.8063]
[1752684076434,3.39,172.17,172.14,5.8066]
[1752684076638,5.84372461,172.18,172.14,5.8066]
[1752684076839,3.17,172.15,172.14,5.8066]
[1752684077240,3.17,172.16,172.15,5.8062]
[1752684078243,3.20822461,172.18,172.17,5.8056]
[1752684078537,3.17,172.17,172.1,7.55448348]
[1752684078743,3.17,172.17,172.13,5.8067]
[1752684078947,3.17,172.17,172.1,3.29]
[1752684079238,3.17,172.17,172.14,5.8064]
[1752684079444,3.17,172.17,172.1,3.29]
[1752684079650,3.17,172.17,172.1,10.84448348]
[1752684079847,3.17,172.17,172.14,5.8064]
[1752684080048,3.17,172.17,172.1,10.84448348]
[1752684080347,3.20917078,172.17,172.1,10.84448348]
[1752684080549,3.20917078,172.17,172.14,5.8064]
[1752684080745,3.17,172.16,172.1,3.29]
[1752684080948,3.17,172.13,172.05,3.29]
[1752684081143,3.17,172.13,172.1,5.8078]
[1752684081448,3.17,172.13,172.08,7.55448348]
[1752684081649,3.17,172.12,172.1,3.29]
[1752684081846,3.20998986,172.12,172.08,7.55448348]
[1752684082052,3.17,172.11,172.1,5.808]
[1752684082242,3.20998986,172.12,172.09,3.29]
[1752684082445,3.20998986,172.12,172.1,9.0977]
[1752684082845,0.03998986,172.12,172.07,3.29]
[1752684083045,3.17,172.09,172.08,5.8084]
[1752684083243,5.8069,172.14,172.07,3.29]
[1752684083450,3.17,172.13,172.07,3.29]
[1752684083648,3.17,172.13,172.09,5.8081]
[1752684084043,3.17,172.13,172.05,3.29]
[1752684084248,3.17,172.13,172.09,5.8083]
[1752684084442,3.17,172.14,172.07,10.84448348]
[1752684084847,8.9768,172.14,172.1,5.8077]
[1752684085043,5.8068,172.14,172.1,5.8077]
[1752684085246,3.17,172.11,172.07,7.55448348]
[1752684085456,3.17,172.1,172.09,5.8082]
[1752684086048,7.55448348,172.15,172.06,3.29]
[1752684086256,3.17,172.08,172.06,3.29]
[1752684086748,3.17,172.08,172.07,5.809]
[1752684086949,3.17,172.08,172.06,3.29]
[1752684086950,7.55448348,172.15,172.06,7.55448348]
[1752684087248,3.17,172.09,172.08,5.8087]
[1752684089549,7.55448348,172.15,172.08,10.84448348]
[1752684089550,3.17,172.15,172.08,10.84448348]
[1752684090453,3.17,172.17,172.11,3.29]
[1752684090751,3.17,172.16,172.14,3.29]
[1752684090944,3.17,172.17,172.11,3.29]
[1752684091145,3.17,172.17,172.09,10.84448348]
[1752684091351,3.17,172.12,172.06,3.29]
[1752684091848,3.17,172.1,172.02,10.84448348]
[1752684092348,8.9781,172.1,172.02,10.84448348]
[1752684092557,0.03702165,172.08,172.04,3.29]
[1752684092755,3.17,172.06,172.05,5.8095]
[1752684094554,3.17,172.06,171.97,7.55448348]
[1752684094754,3.17,172.06,171.99,7.55448348]
[1752684094949,3.17,172.13,172.06,5.8093]
[1752684095153,3.17,172.13,172.03,7.55448348]
[1752684095352,5.8081,172.1,172.03,7.55448348]
[1752684095548,3.17,172.09,172.03,7.55448348]
[1752684095752,3.17,172.1,172.02,7.55448348]
[1752684096548,3.17,172.1,172.04,7.55448348]
[1752684096746,3.17,172.14,172.04,0.47]
[1752684097048,0.0384212,172.09,172.04,7.55448348]
[1752684097254,3.2084212,172.09,172.06,0.47]
[1752684097453,3.2084212,172.09,172.08,5.8087]
[1752684099749,3.17,172.08,172.02,8.02448348]
[1752684100156,3.17,172.08,172.0,0.47]
[1752684100355,3.17,172.06,171.96,0.47]
[1752684100554,3.17,172.04,171.96,8.02448348]
[1752684100753,3.17,172.04,172.0,5.8114]
[1752684100954,0.03877221,172.02,172.0,5.8114]
[1752684101154,3.17,172.01,172.0,5.8114]
[1752684101458,3.17,172.01,171.97,0.47]
[1752684102256,3.17,172.0,171.93,7.55448348]
[1752684102661,3.17,172.0,171.93,8.02448348]
[1752684103055,3.17,172.0,171.97,5.8123]
[1752684103754,3.17,172.0,171.98,5.8121]
[1752684103958,3.17,171.99,171.98,5.8121]
[1752684104662,3.17,171.99,171.97,5.8124]
[1752684104862,3.17,171.98,171.93,0.47]
[1752684105159,5.8108,172.02,171.92,7.55448348]
[1752684105160,3.17,171.97,171.94,0.47]
[1752684105361,5.8108,172.02,171.94,0.47]
[1752684105562,13.36498348,172.03,171.94,0.47]
[1752684105762,7.55448348,172.03,171.94,0.47]
[1752684105962,3.17,172.02,171.94,0.47]
[1752684106263,3.17,172.02,171.97,5.8124]
[1752684106556,3.17,172.02,171.93,0.47]
[1752684106862,3.17,172.02,171.95,0.47]
[1752684107062,3.17,172.02,171.96,7.55448348]
[1752684107363,3.25724285,172.0,171.99,5.8118]
[1752684107658,3.22,172.03,171.97,0.47]
[1752684108162,3.22,172.03,172.0,5.8111]
[1752684108462,3.22,172.03,171.97,0.47]
[1752684108857,3.22,172.03,171.96,7.55448348]
[1752684109055,3.22,172.03,171.99,5.8116]
[1752684109262,3.22,172.03,171.96,7.55448348]
[1752684109758,201.55448348,172.07,171.98,7.55448348]
[1752684110066,3.22,172.06,172.0,8.02448348]
[1752684110262,3.22,172.06,172.05,5.8097]
[1752684110858,3.22,172.08,172.07,5.8088]
[1752684111458,193.88,172.13,172.09,5.8083]
[1752684111660,3.22,172.1,172.09,5.8083]
[1752684112164,3.22,172.08,172.06,7.55448348]
[1752684112761,3.22,172.08,172.07,5.8091]
[1752684113961,3.22,172.08,172.06,5.8093]
[1752684114166,3.22,172.1,172.02,7.55448348]
[1752684114554,0.03779388,172.08,171.98,8.02448348]
[1752684114761,3.22,172.05,171.96,7.55448348]
[1752684115164,0.03745537,172.02,171.95,8.02448348]
[1752684115364,3.22,172.01,171.95,8.02448348]
[1752684115670,3.22,172.01,171.92,7.55448348]
[1752684115866,3.22,171.99,171.91,218.00815006]
[1752684116265,3.26167674,171.97,171.89,35.09002345]
[1752684116466,3.26167674,171.97,171.88,7.55448348]
[1752684116663,3.22,171.96,171.9,7.55448348]
[1752684117269,3.22,171.94,171.91,0.47]
[1752684117662,0.04167674,171.97,171.96,5.8128]
[1752684118067,200.07448348,172.04,171.94,7.55448348]
[1752684118272,0.04116147,171.98,171.94,7.55448348]
[1752684118468,0.04116147,171.98,171.87,11.6315]
[1752684118669,3.22,171.97,171.94,7.55448348]
[1752684118968,3.22,171.97,171.96,5.8128]
[1752684119174,3.25768594,171.97,171.96,5.8128]
[1752684119872,3.25768594,171.97,171.92,7.55448348]
[1752684120374,3.22,171.96,171.92,8.02448348]
[1752684120571,3.22,171.95,171.92,8.02448348]
[1752684120879,3.22,172.02,171.95,0.47]
[1752684121178,3.22,172.02,171.92,0.03830722]
[1752684121179,10.77448348,172.1,172.0,7.55448348]
[1752684121579,3.22,172.09,172.0,7.55448348]
[1752684121975,7.55448348,172.08,171.97,7.55448348]
[1752684122179,3.22,172.07,172.03,5.85156656]
[1752684122582,3.22,172.07,172.03,5.8103]
[1752684122772,3.22,172.07,172.04,5.81]
[1752684123172,3.22,172.07,172.03,0.03968838]
[1752684123475,7.55448348,172.06,171.95,7.55448348]
[1752684123778,3.22,172.01,171.96,5.8127]
[1752684123978,3.22,171.99,171.96,5.8127]
[1752684124184,3.22,172.06,171.96,7.55448348]
[1752684124375,3.22,172.04,171.99,5.8115]
[1752684124578,3.22,172.04,171.95,7.55448348]
[1752684124776,199.33448348,172.05,171.95,7.55448348]
[1752684124777,0.03712907,172.03,171.99,5.8117]
[1752684124977,3.22,172.02,171.97,7.55448348]
[1752684125177,3.22,172.02,171.95,7.55448348]
[1752684125477,3.22,172.02,171.97,5.8124]
[1752684125674,3.22,172.02,171.95,7.55448348]
[1752684125982,0.04157993,172.0,171.99,7.55448348]
[1752684126279,0.04157993,172.0,171.96,7.55448348]
[1752684126481,191.68,172.06,171.96,7.55448348]
[1752684126680,0.04325758,172.0,171.96,10.80448348]
[1752684126882,0.04325758,172.0,171.97,3.25]
[1752684127079,0.04325758,172.0,171.99,5.8118]
[1752684127581,0.04325758,172.0,171.98,5.812]
[1752684128585,3.22,171.99,171.98,5.812]
[1752684129284,3.22,171.99,171.97,5.8123]
[1752684129484,3.22,171.99,171.92,7.55448348]
[1752684130085,3.22,171.97,171.92,7.55448348]
[1752684130277,3.25892927,171.97,171.92,7.55448348]
[1752684130476,3.25892927,171.97,171.94,5.8132]
[1752684130783,3.22,171.96,171.93,3.25]
[1752684130983,0.03892927,171.97,171.96,5.8128]
[1752684131182,3.25892927,171.97,171.96,5.8128]
[1752684131886,3.22,171.96,171.93,10.80448348]
[1752684132086,3.22,171.95,171.93,10.80448348]
[1752684132278,3.22,171.96,171.93,7.55448348]
[1752684132482,3.22,171.96,171.94,3.25]
[1752684132684,0.03892927,171.97,171.94,3.25]
[1752684132988,2.927e-05,171.97,171.96,9.0628]
[1752684133787,2.927e-05,171.97,171.96,16.61728348]
[1752684134086,2.927e-05,171.97,171.96,9.0628]
[1752684134290,2.927e-05,171.97,171.96,5.8128]
[1752684135690,2.927e-05,171.97,171.96,9.0628]
[1752684136190,502.08,172.04,172.01,5.8109]
[1752684136490,3.22,172.02,171.99,10.80448348]
[1752684136687,3.22,172.02,172.01,5.8111]
[1752684137084,3.22,172.02,171.91,3.29]
[1752684137290,3.22,172.02,171.9,19.18358348]
[1752684137291,3.22,172.02,171.99,5.8115]
[1752684137489,3.22,172.02,172.0,0.04003524]
[1752684137685,3.22,172.02,171.98,5.812]
[1752684137890,3.22,172.02,171.96,10.84448348]
[1752684137891,3.26323122,172.02,171.96,3.29]
[1752684138093,3.26323122,172.02,171.94,3.29]
[1752684138287,9.2413,172.01,171.94,3.29]
[1752684138493,3.43,172.0,171.94,3.29]
[1752684139694,3.43,172.0,171.99,5.8118]
[1752684139985,3.43,172.0,171.94,3.29]
[1752684140593,3.43,172.0,171.98,5.8119]
[1752684140892,3.43,171.99,171.98,5.8119]
[1752684141690,3.43,171.99,171.97,5.8123]
[1752684141988,3.43,171.99,171.94,3.29]
[1752684143193,16.34861117,171.99,171.94,3.29]
[1752684143492,3.43,171.97,171.94,3.29]
[1752684143687,12.91861117,171.99,171.94,3.29]
[1752684143688,3.43,171.96,171.94,3.29]
[1752684143891,3.43,171.96,171.95,5.8131]
[1752684144596,3.43,171.98,171.93,7.55448348]
[1752684144792,16.34861117,171.98,171.92,3.29]
[1752684144992,3.43,171.97,171.94,5.8133]
[1752684145192,12.91861117,171.97,171.9,3.29]
[1752684145393,3.43,171.95,171.9,3.29]
[1752684145594,3.43,171.95,171.93,5.8137]
[1752684145991,3.43,171.94,171.93,5.8137]
[1752684146997,18.77225159,171.97,171.93,3.29]
[1752684146998,0.04104042,171.97,171.93,3.29]
[1752684147296,3.43,171.94,171.91,10.84448348]
[1752684147595,3.43,171.96,171.89,10.84448348]
[1752684147795,3.43,171.95,171.89,10.84448348]
[1752684148095,3.43,171.94,171.89,3.29]
[1752684148291,3.46904835,171.94,171.89,3.29]
[1752684148492,3.46904835,171.94,171.92,5.814]
[1752684148686,3.46904835,171.94,171.93,7.55448348]
[1752684148687,0.03904835,171.94,171.93,7.55448348]
[1752684148891,16.14826397,172.0,171.94,3.29]
[1752684148892,3.43,172.0,171.94,3.29]
[1752684149089,3.43,172.02,172.01,5.8111]
[1752684150089,194.19,172.04,172.02,3.29]
[1752684150297,190.76,172.04,172.02,10.84448348]
[1752684150591,3.43,172.03,172.02,5.8107]
[1752684150892,190.76,172.04,172.02,13.36518348]
[1752684151086,3.43,172.05,172.04,5.8101]
[1752684151288,16.34861117,172.06,172.03,3.29]
[1752684151495,3.43,172.06,172.04,7.55448348]
[1752684151691,3.43,172.08,172.07,5.8091]
[1752684151995,12.91861117,172.12,172.07,3.29]
[1752684152190,18.72501117,172.15,172.11,13.36218348]
[1752684152387,12.91861117,172.15,172.09,10.84448348]
[1752684152592,3.43,172.11,172.09,10.84448348]
[1752684152794,12.91861117,172.15,172.09,10.84448348]
[1752684152995,3.43,172.13,172.11,7.55448348]
[1752684153296,3.43,172.15,172.12,3.29]
[1752684153697,3.43,172.15,172.13,10.84448348]
[1752684153999,190.74,172.16,172.14,9.0967]
[1752684154199,190.74,172.16,172.15,7.55448348]
[1752684154400,3.43,172.17,172.15,10.84448348]
[1752684154698,3.43,172.19,172.12,0.04184377]
[1752684154895,3.43,172.19,172.12,7.59632725]
[1752684155096,3.43,172.19,172.14,7.55448348]
[1752684155396,9.2351,172.19,172.14,7.55448348]
[1752684155695,3.43,172.18,172.13,7.55448348]
[1752684156003,692.86,172.2,172.15,7.55448348]
[1752684156194,3.43,172.16,172.15,13.36078348]
[1752684156500,3.43,172.19,172.14,7.55448348]
[1752684156796,3.43,172.19,172.14,0.04031272]
[1752684157394,3.43,172.16,172.14,7.5947962]
[1752684158099,692.86,172.2,172.14,7.5947962]
[1752684158299,3.43,172.19,172.14,0.04031272]
[1752684160302,7.55448348,172.16,172.09,5.8083]
[1752684160505,3.43,172.14,172.09,5.8083]
[1752684161095,5.807,172.14,172.09,5.8083]